Cogmind - Beta 14 @@@ ROGUE MODE // 2024.09.25 @ 10:55:11 Player: star Result: Self-destructed Performance ------------- Evolutions (2) 1000 Regions Visited (5) 1000 Robots Destroyed (25) 125 Value Destroyed (623) 623 Prototype IDs (23) 460 Alien Tech Used (0) 0 Bonus (300) 300 TOTAL SCORE: 3508 Bonus ------- Aligned with FarCom 300 Cogmind --------- Core Integrity 270/550 Matter 95/300 Energy 87/100 System Corruption 0% Temperature Cool (0) Movement Core (350) Ox6 Location -8/Materials Parts ------- > --- POWER (1) -------- (None) > --- PROPULSION (5) --- (None) > --- UTILITY (3) ------ Large Storage Unit Improved Targeting Computer Improved Targeting Computer > --- WEAPON (2) ------- Small Laser > --- INVENTORY (15) --- Ion Engine Light Ion Engine High-capacity Battery (250) Transport Network Coupler Light Armor Plating Guided Plasma Cannon Peak State ------------ > --- POWER ------------ Improved Ion Engine > --- PROPULSION ------- Wheel Compact Wheel > --- UTILITY ---------- Large Storage Unit High-capacity Battery Advanced Weight Redist. System > --- WEAPON ----------- Guided Plasma Cannon Light Assault Rifle > --- INVENTORY -------- Ion Engine Light Ion Engine Improved Ion Engine Wheel Transport Network Coupler Improved Targeting Computer Improved Targeting Computer Light Armor Plating Small Laser Assault Rifle Light Assault Rifle Light Assault Rifle [Rating: 19] Favorites ----------- Power Ion Engine Engine Ion Engine Propulsion Wheel Leg Aluminum Leg Wheel Wheel Flight Unit Flight Unit Utility High-capacity Battery Device Advanced Weight Redist. System Storage High-capacity Battery Processor Improved Targeting Computer Weapon Small Laser Energy Gun Small Laser Energy Cannon Guided Plasma Cannon Ballistic Gun Light Assault Rifle Ballistic Cannon Flak Cannon Build | -11 -10 -10 -10 -9 -8 ------- Run | Yrd Mat Min Exi Min Mat Slots Evolved 4 | . . . . . 4 Power . | . . . . . . Propulsion 3 | . . . . . 3 Utility 1 | . . . . . 1 Weapon . | . . . . . . Parts Attached 27 | 6 3 . . 4 14 Power 5 | 2 . . . 1 2 Engine 5 | 2 . . . 1 2 Core . | . . . . . . Reactor . | . . . . . . Propulsion 6 | 2 . . . 1 3 Treads . | . . . . . . Leg 1 | . . . . . 1 Wheel 4 | 2 . . . 1 1 Hover . | . . . . . . Flight 1 | . . . . . 1 Utility 6 | . 2 . . . 4 Device 2 | . . . . . 2 Storage 2 | . 2 . . . . Processor 2 | . . . . . 2 Hackware . | . . . . . . Protection . | . . . . . . Artifact . | . . . . . . Weapon 10 | 2 1 . . 2 5 Energy Gun 3 | 1 1 . . . 1 Energy Cannon 1 | . . . . 1 . Ballistic Gun 5 | 1 . . . 1 3 Ballistic Cannon 1 | . . . . . 1 Launcher . | . . . . . . Special Weapon . | . . . . . . Impact Weapon . | . . . . . . Slashing Weapon . | . . . . . . Piercing Weapon . | . . . . . . Special Melee Weapon . | . . . . . . Unidentified Prototypes . | . . . . . . Parts Lost 14 | . . . . . 14 Power 2 | . . . . . 2 Propulsion 5 | . . . . . 5 Utility 2 | . . . . . 2 Weapon 5 | . . . . . 5 Highest Loss Streak 6 | . . . . . 6 To Critical Strikes . | . . . . . . Average Slot Usage (%) 86 | . 91 100 100 100 60 Engine 12 | . 14 14 14 14 7 Leg 1 | . . . . . 4 Wheel 21 | . 28 28 28 28 5 Device 1 | . . . . . 6 Storage 22 | . 19 28 28 28 17 Energy Gun 7 | . 14 14 14 4 . Energy Cannon 3 | . . . . 9 2 Ballistic Gun 12 | . 14 14 14 14 9 Ballistic Cannon 1 | . . . . . 3 Peak Build Rating 19 | 5 7 7 8 16 19 Average Rating 9 | 3 6 7 7 13 13 On Entrance 7 | . 5 7 7 8 16 Naked Turns . | . . . . . . Heaviest Build 42 | 8 32 32 32 42 42 Greatest Support 35 | 20 20 20 20 26 35 Greatest Overweight (x) 8 | . 1 1 1 2 8 Average Overweight (x) . | . . 1 1 1 1 Largest Inventory Capacity 15 | 5 15 15 15 15 15 Average Capacity 13 | 5 9 15 15 15 15 Most Carried 13 | 2 4 4 5 12 13 Average Carried 6 | . 3 4 4 8 10 Final Capacity 15 | 5 15 15 15 15 15 Final Carried 12 | 2 4 4 5 12 6 Class Distribution -------------------- 97% | Mutant Dominant Class ---------------- Mutant | -10/Materials Mutant | -10/Mines Mutant | -10/Exiles Mutant | -9/Mines Mutant | -8/Materials Resources | -11 -10 -10 -10 -9 -8 ----------- Run | Yrd Mat Min Exi Min Mat Matter Collected 686 | 265 81 . . 137 203 Remotely . | . . . . . . Salvage Created 656 | 43 194 . . 187 232 Parts 49 | 2 19 . . 16 12 Haulers Intercepted 1 | . 1 . . . . Recyclers Shooed . | . . . . . . Parts Field Recycled . | . . . . . . Retrieved Matter . | . . . . . . Parts Self-Destructed . | . . . . . . Prevented . | . . . . . . Kills | -11 -10 -10 -10 -9 -8 ------- Run | Yrd Mat Min Exi Min Mat Combat Hostiles Destroyed 23 | 1 7 . . 5 10 Guns 15 | 1 7 . . 3 4 Cannons 8 | . . . . 2 6 Classes Destroyed 6 | 1 2 . . 2 1 Tunneler 1 | . . . . 1 . Hauler 1 | . 1 . . . . Swarmer 12 | . 6 . . 3 3 Grunt 6 | 1 1 . . . 4 Sentry 4 | . . . . 2 2 Hunter 1 | . . . . . 1 Best Kill Streak 4 | 1 4 . . 3 3 Combat Bots Only 4 | 1 4 . . 3 3 Max Kills in Single Turn 1 | 1 1 . . 1 1 Gunslinging . | . . . . . . Exploded . | . . . . . . Melee . | . . . . . . Uniques/NPCs Destroyed . | . . . . . . Combat | -11 -10 -10 -10 -9 -8 -------- Run | Yrd Mat Min Exi Min Mat Hostile Shots Fired 199 | 7 29 . . 16 147 Missed 55 | 3 6 . . 6 40 Damage Taken 1521 | 43 192 . . 82 1204 Core 344 | . 38 . . 26 280 Absorbed by Shields . | . . . . . . Core Remaining (%) 87 | 100 . . . 74 . Volleys Fired 101 | 5 20 . . 15 61 Largest 2 | 2 2 . . 2 2 Hottest 120 | 60 60 . . 120 120 Shots Fired 165 | 10 39 . . 20 96 Gun 112 | 10 39 . . 10 53 Cannon 53 | . . . . 10 43 Launcher . | . . . . . . Special . | . . . . . . Kinetic 114 | 5 20 . . 5 84 Thermal 51 | 5 19 . . 15 12 Explosive . | . . . . . . Electromagnetic . | . . . . . . Robot Hit Streak 9 | 5 9 . . 3 9 Robot Miss Streak 8 | 1 5 . . 5 8 Penetration Max . | . . . . . . Secondary Targets 2 | . 1 . . 1 . Max Gunslinging Chain 1 | . 1 . . 1 . Shots Hit Robots 101 | 8 21 . . 5 67 Core Hits 57 | 2 10 . . 6 39 Critical Kills . | . . . . . . Critical Parts Destroyed . | . . . . . . Critical Strikes . | . . . . . . Melee Attacks . | . . . . . . Impact . | . . . . . . Slashing . | . . . . . . Piercing . | . . . . . . Sneak Attacks . | . . . . . . Combat Hostiles . | . . . . . . Follow-up Attacks . | . . . . . . Damage Inflicted 1593 | 92 254 . . 306 941 Guns 716 | 92 254 . . 61 309 Cannons 877 | . . . . 245 632 Explosions . | . . . . . . Melee . | . . . . . . Ramming . | . . . . . . Kinetic 1007 | 58 125 . . 25 799 Thermal 586 | 34 129 . . 281 142 Explosive . | . . . . . . Electromagnetic . | . . . . . . Impact . | . . . . . . Slashing . | . . . . . . Piercing . | . . . . . . Highest Corruption . | . . . . . . Average Corruption . | . . . . . . Corruption Purged . | . . . . . . Corruption Blocked . | . . . . . . Overload Shots . | . . . . . . Overflow Damage . | . . . . . . Projectiles . | . . . . . . Explosions . | . . . . . . Melee . | . . . . . . Knockbacks 16 | . . . . . 16 Impact . | . . . . . . Kinetic 14 | . . . . . 14 Secondary 2 | . . . . . 2 Self-Inflicted Damage . | . . . . . . Shots . | . . . . . . Rammed . | . . . . . . Targets Rammed . | . . . . . . Kicked . | . . . . . . Crushed . | . . . . . . Highest Temperature 480 | 24 18 . . 480 390 Average Temperature 162 | 13 13 . . 185 177 Received Heat Transfer 384 | 24 18 . . . 342 Effects 6 | . . . . 2 4 Shutdowns 2 | . . . . 1 1 Matter Decay 3 | . . . . 1 2 Short Circuit 1 | . . . . . 1 Siege Activations . | . . . . . . Robots Corrupted . | . . . . . . Combat Hostiles . | . . . . . . Parts Fried . | . . . . . . Impact Corruptions . | . . . . . . Robots Melted . | . . . . . . Combat Hostiles . | . . . . . . Parts Melted 1 | . 1 . . . . Heat Transferred 1330 | 75 300 . . 635 320 Parts Sabotaged . | . . . . . . Parts Stolen . | . . . . . . Parts Stripped . | . . . . . . Power Chain Reactions . | . . . . . . Alert | -11 -10 -10 -10 -9 -8 ------- Run | Yrd Mat Min Exi Min Mat Peak Influence 236 | 20 214 83 . 118 236 Initial 83 | . 13 83 . . 45 Average 112 | 3 125 83 . 96 143 Maximum Alert Level 1 | . 1 . . . 1 Low Security (%) 81 | 100 70 100 . 100 67 Level 1 18 | . 29 . . . 32 Level 2 . | . . . . . . Level 3 . | . . . . . . Level 4 . | . . . . . . Level 5 . | . . . . . . High Security . | . . . . . . Max Security . | . . . . . . Squads Dispatched 4 | . 1 . . . 3 Investigation . | . . . . . . Extermination . | . . . . . . Reinforcement 1 | . 1 . . . . Assault . | . . . . . . Garrison 3 | . . . . . 3 Intercept . | . . . . . . Searches Triggered . | . . . . . . Construction Impeded . | . . . . . . Haulers Reinforced . | . . . . . . Active Scanning Responses . | . . . . . . Cargo Convoy Interrupts . | . . . . . . Stealth | -11 -10 -10 -10 -9 -8 --------- Run | Yrd Mat Min Exi Min Mat Distress Signals 1 | . 1 . . . . Communications Jammed . | . . . . . . Distress Signals . | . . . . . . Times Spotted 33 | 1 10 . . 5 17 Peak Tracking Total 4 | 1 4 . . 3 4 Tactical Retreats . | . . . . . . Traps | -11 -10 -10 -10 -9 -8 ------- Run | Yrd Mat Min Exi Min Mat Traps Triggered 1 | . 1 . . . . Indirectly . | . . . . . . Trap Hack Attempts . | . . . . . . Triggered . | . . . . . . Disarmed . | . . . . . . Reprogrammed . | . . . . . . Reused . | . . . . . . Traps Extracted . | . . . . . . Installed . | . . . . . . Triggered . | . . . . . . Machines | -11 -10 -10 -10 -9 -8 ---------- Run | Yrd Mat Min Exi Min Mat Machines Disabled . | . . . . . . Max in Single Turn . | . . . . . . Machines Repaired . | . . . . . . Machines Dismantled . | . . . . . . Machines Sabotaged . | . . . . . . Overloaded Fab Kills . | . . . . . . Hacking | -11 -10 -10 -10 -9 -8 --------- Run | Yrd Mat Min Exi Min Mat Machines Accessed 6 | . 4 . 1 . 1 Terminals 4 | . 4 . . . . Fabricators . | . . . . . . Repair Stations . | . . . . . . Recycling Units . | . . . . . . Scanalyzers 1 | . . . . . 1 Garrison Access . | . . . . . . Total Hacks 8 | . 5 . 1 . 2 Successful 7 | . 4 . 1 . 2 Failed 1 | . 1 . . . . Catastrophic . | . . . . . . Database Lockouts . | . . . . . . Manual 11 | . 9 . 2 . . Terminals 5 | . 5 . . . . Fabricators . | . . . . . . Repair Stations . | . . . . . . Recycling Units . | . . . . . . Scanalyzers 2 | . . . . . 2 Garrison Access . | . . . . . . Terminal Hacks 4 | . 3 . 1 . . Robot Analysis 2 | . 2 . . . . Zone Layout 1 | . 1 . . . . Derelict Proto ID Bank 1 | . . . 1 . . Fabricator Hacks . | . . . . . . Repair Station Hacks . | . . . . . . Recycling Unit Hacks . | . . . . . . Scanalyzer 2 | . . . . . 2 Insert Component 1 | . . . . . 1 Analyze 1 | . . . . . 1 Garrison Access Hacks . | . . . . . . Unauthorized Hacks 1 | . 1 . . . . Terminals 1 | . 1 . . . . Botnet 1 | . 1 . . . . Fabricators . | . . . . . . Repair Stations . | . . . . . . Recycling Units . | . . . . . . Scanalyzers . | . . . . . . Garrison Access . | . . . . . . Data Cores Recovered . | . . . . . . Used . | . . . . . . Hacking Detections 2 | . 2 . . . . Full Trace Events . | . . . . . . Feedback Events . | . . . . . . Feedback Blocked . | . . . . . . Robot Schematics Acquired . | . . . . . . Robots Built . | . . . . . . Authchips . | . . . . . . Time . | . . . . . . Total Robot Build Rating . | . . . . . . Part Schematics Acquired . | . . . . . . Parts Built . | . . . . . . Authchips . | . . . . . . Time . | . . . . . . Total Part Build Rating . | . . . . . . Parts Repaired . | . . . . . . Time . | . . . . . . Parts Recycled . | . . . . . . Recycled Matter . | . . . . . . Retrieved Matter . | . . . . . . Retrieved Components . | . . . . . . Parts Scanalyzed 1 | . . . . . 1 Part Schematics Acquired . | . . . . . . Parts Damaged . | . . . . . . Bothacking | -11 -10 -10 -10 -9 -8 ------------ Run | Yrd Mat Min Exi Min Mat Used RIF Installer . | . . . . . . Robots Hacked . | . . . . . . Non-combat . | . . . . . . Combat . | . . . . . . Robot Hacks Applied . | . . . . . . Relay Couplers Released . | . . . . . . Fabnet Peak Effective % . | . . . . . . Robots Rewired . | . . . . . . Allies Hacked . | . . . . . . Hacks Repelled . | . . . . . . Allies | -11 -10 -10 -10 -9 -8 -------- Run | Yrd Mat Min Exi Min Mat Total Allies . | . . . . . . Largest Group . | . . . . . . Highest-Rated Group . | . . . . . . Highest-Rated Ally . | . . . . . . Total Orders . | . . . . . . Ally Attacks . | . . . . . . Total Damage . | . . . . . . Kills . | . . . . . . Allies Corrupted . | . . . . . . Allies Melted . | . . . . . . Intel | -11 -10 -10 -10 -9 -8 ------- Run | Yrd Mat Min Exi Min Mat Robot Analysis Total 2 | . 2 . . . . Derelict Logs Recovered 1 | . . 1 . . . Drone Launches . | . . . . . . Drone Recoveries . | . . . . . . Exploration | -11 -10 -10 -10 -9 -8 ------------- Run | Yrd Mat Min Exi Min Mat Turns Passed 1341 | 82 309 29 208 348 365 Spaces Moved 978 | 78 267 31 218 286 98 Core 26 | 18 . . . . 8 Treads . | . . . . . . Legs 16 | . . . . . 16 Wheels 929 | 60 267 31 218 286 67 Hover . | . . . . . . Flight 7 | . . . . . 7 Fastest Speed 50 | 50 80 95 95 95 105 Average Speed 102 | 73 87 95 95 101 184 Slowest Speed 690 | 80 95 95 95 110 690 Overloaded Moves . | . . . . . . Propulsion Burnouts . | . . . . . . Robots Hopped . | . . . . . . Cave-ins Triggered . | . . . . . . Exploration Rate (%) 35 | 8 54 12 62 69 8 Regions Visited 5 Branch Regions 3 Pre-discovered Areas . | . . . . . . Known Exits Taken . | . . . . . . Unknown Exits Taken 5 | 1 1 1 1 1 . Scrap Searched 1 | . . . . 1 . Spaces Dug 4 | . . . . . 4 Terrain Destroyed 8 | . . . . 2 6 Melee . | . . . . . . Projectile 8 | . . . . 2 6 AOE . | . . . . . . Terrain Rammed . | . . . . . . Walls Destroyed . | . . . . . . Machines Disabled . | . . . . . . Actions | -11 -10 -10 -10 -9 -8 --------- Run | Yrd Mat Min Exi Min Mat Total 1152 | 89 302 30 218 321 192 Wait 42 | . 11 . . 13 18 Move 973 | 77 266 30 217 285 98 Hop . | . . . . . . Pick Up 9 | 1 2 . 1 4 1 Fast Attach 12 | 5 3 . . . 4 Attach 7 | . . . . . 7 Detach . | . . . . . . Swap 8 | 1 . . . 4 3 Drop . | . . . . . . Fire 101 | 5 20 . . 15 61 Melee . | . . . . . . Ram . | . . . . . . Kick . | . . . . . . Crush . | . . . . . . Escape Stasis . | . . . . . . Rewire . | . . . . . . Trap . | . . . . . . Miscellaneous . | . . . . . . Route ------- -11/Scrapyard -10/Materials (discovered 2 exits: [*Mat] / [*Min]) -10/Mines -10/Exiles -9/Mines -8/Materials History --------- Turn | Location | Event 2 | -11/Scrapyard | Met Revision 17 54 | -11/Scrapyard | Discovered new exit (range 8) 83 | -11/Scrapyard | Entered Materials 290 | -10/Materials | Discovered new exit (range 7) 308 | -10/Materials | Build established: Mutant 374 | -10/Materials | Discovered new exit (range 14) 392 | -10/Materials | Entered Mines 394 | -10/Mines | Met a Derelict bent on vengeance 401 | -10/Mines | Learned 8 Materials zone layouts 417 | -10/Mines | Deemed a non-threat by the Exiles lab entrance 417 | -10/Mines | Discovered new exit (range 5) 421 | -10/Mines | Entered Exiles 444 | -10/Exiles | Met 8R-AWN 461 | -10/Exiles | Met EX-HEX 489 | -10/Exiles | Met EX-BIN 500 | -10/Exiles | Aligned with FarCom system 501 | -10/Exiles | Given EX-Vault access code 523 | -10/Exiles | Opened EX-Vault 536 | -10/Exiles | Found Gui. Plasma Cannon 556 | -10/Exiles | Warned to stay clear of 0b10 Research branches 584 | -10/Exiles | Met EX-DEC 617 | -10/Exiles | Discovered new exit (range 14) 629 | -10/Exiles | Left Exiles lab with Gui. Plasma Cannon 629 | -10/Exiles | Entered Mines 794 | -9/Mines | Joined a pair of Derelicts in attacking an 0b10 outpost 886 | -9/Mines | Discovered new exit (range 11) 977 | -9/Mines | Entered Materials 977 | -8/Materials | Evolved 4 slots: Propulsion x3, Utility x1 1075 | -8/Materials | Garrison activated, responded to threat 1206 | -8/Materials | Lost 3 parts (1n1u1w) 1342 | -8/Materials | Self-destructed Last Messages --------------- robots. 01242_ K-01 Serf collects debris. 01246_ Acquired 10 matter. 01253_ Acquired 36 matter. 01258_ R-06 Scavenger collects Lgt. Assault Rifle. 01281_ K-01 Serf collects debris. 01305_ K-01 Serf destroyed. 01308_ Imp. Ion Engine destroyed. 01313_ M-13 Machinist repairs Y-45 Defender. 01314_ Flight Unit destroyed. 01314_ Imp. Terrain Scanner destroyed. 01317_ R-06 Scavenger destroyed. 01322_ Acquired 38 matter. The Imp. Targeting Computer is a fragile type of part, which are destroyed if removed (these are marked with a colon in the parts list, as a reminder). 01328_ K-01 Serf collects debris. 01337_ Lgt. Assault Rifle destroyed. 01337_ Aluminum Leg destroyed. 01340_ Lgt. Assault Rifle destroyed. Map ----- +----------------------------------------------------+ | | | | | | | | | | | | | | | | | | | | | | | | | | | | | | | | | | | | | | | ###########???????#????#??????????#?###??#???????? | | # #????#?????######????????## ??????????? | | # #???######## #????????# "??????????? | | # #??## ! = # ###??????## ""??"??????? | | # """"" #???#! # + ######### "?? ???????? | | # """"" #???# "" # s# # ??????????? | | # """"" #?#?# """ # @# # ??????????? | | # ##### S" # % %s= # ??? ??????? | | # " # # # % =% ###?#????????? | | #####+############+######## Y%* #????????????? | | m [ #????????????? | | ########### #?????? ?????? | | #?????????# ###? ????????? | | ########?######### ?????????? | | ?????????# # ##/###########??????????? | | ?????????# # # """ # """ #??????????? | | ?????????# + + """ # "R" #??????????? | | ?????????# ######### """ # " " #??????????? | | ?????????# #?#?????#| # +??????????? | | ?????????#########???????# # #??????????? | | ????????????##############! # #??????????? | | ?????######## ######### #??????????? | | ?????# #"" # ## #??????????? | | ?????# #"T # ## #??????????? | | ?????#""" #"" # ## #??????????? | | ?????#""" # ?????????????????????????# | | ?????#""" # ?????????????????????????# | | ?????# # ?????????????????????????# ##### | | ?????######+##?????????????????????????# ##### | | ########## ?????????????????????????# # | | # ?????????????????????????# # | +----------------------------------------------------+ Best States ------------- Heat Dissipation 31 Energy Generation 12 Energy Capacity 515 Matter Stores 300 Matter Capacity 300 Sight Range 16 Terrain Scan Range 16 Terrain Scan Density 10 Additional Mass Support 9 Evasion (%) 50 Targeting Accuracy 12 Item Schematics ----------------- None Robot Schematics ------------------ None Fabricated ------------ Nothing Alien Tech Used ----------------- None Achievements -------------- None Challenges ------------ None Game ------ Seed CatalystRecyclingLegs Manual? 0 Play Time 00:16:19 Cumulative 99.1 hours Start 2024.09.25 @ 08:09:04 End 2024.09.25 @ 10:55:11 Sessions 3 Manual Loads 0 Difficulty Rogue Special Mode None Game No. 169 Rogue 169 Adventurer 0 Explorer 0 Win Type - Total 0 Types 0/0/0/0/0/0/0/0/0 Lore% 48 Gallery% 51 Achievement% 41 Wizard Run 0 Options --------- Layout 0 ASCII 0 Keyboard 1 Movement Numpad Keybinds 0 Fullscreen 2 Font 18/SmallcapsGlow Map View 76x50 Zoom Use 1% Tactical HUD 1 Map Filters NONE Filters NONE Steam 1 RUN: 6b089c54-020b-413f-b0ab-b3407b643d79